[Event "Early-Titled-Tuesday-Blitz-October-17-2023"]
[Site "Chess.com"]
[Date "2023.10.17"]
[Round "6"]
[White "GMKrikor"]
[Black "Martial2008"]
[Result "1-0"]
[WhiteElo "2823"]
[BlackElo "2628"]
[TimeControl "180+1"]
[EndTime "9:11:38 PDT"]
[Termination "GMKrikor won by checkmate"]

1. Nf3 {[%clk 0:03:00.9]} 1... Nf6 {[%clk 0:02:58.4]} 2. c4 {[%clk 0:03:00.9]}
2... e6 {[%clk 0:02:55.8]} 3. Nc3 {[%clk 0:03:01.5]} 3... d5 {[%clk 0:02:48.5]}
4. cxd5 {[%clk 0:03:02.4]} 4... exd5 {[%clk 0:02:48.5]} 5. d4 {[%clk 0:03:03.1]}
5... Bb4 {[%clk 0:02:46.7]} 6. Bf4 {[%clk 0:03:03.7]} 6... O-O {[%clk 0:02:46]}
7. e3 {[%clk 0:03:02.8]} 7... Bf5 {[%clk 0:02:41.4]} 8. Qb3 {[%clk 0:02:56.8]}
8... Bxc3+ {[%clk 0:02:39.6]} 9. bxc3 {[%clk 0:02:51.5]} 9... Nbd7 {[%clk
0:02:39.5]} 10. Be2 {[%clk 0:02:35.3]} 10... c5 {[%clk 0:02:38.3]} 11. O-O
{[%clk 0:02:35]} 11... b6 {[%clk 0:02:33.8]} 12. a4 {[%clk 0:02:34.6]} 12... Re8
{[%clk 0:02:32.7]} 13. a5 {[%clk 0:02:33.3]} 13... Qe7 {[%clk 0:02:26.4]} 14.
Qa3 {[%clk 0:02:29.1]} 14... Rac8 {[%clk 0:02:12.6]} 15. h3 {[%clk 0:02:27.1]}
15... Ne4 {[%clk 0:02:10]} 16. Ba6 {[%clk 0:02:15.4]} 16... Rc6 {[%clk
0:02:02.3]} 17. Bb7 {[%clk 0:02:13.1]} 17... Rg6 {[%clk 0:02:00.9]} 18. Kh2
{[%clk 0:01:53.3]} 18... Ndf6 {[%clk 0:01:43.9]} 19. Bc6 {[%clk 0:01:38]} 19...
Rc8 {[%clk 0:01:39.3]} 20. Ne5 {[%clk 0:01:33.2]} 20... Rxc6 {[%clk 0:01:21.8]}
21. Nxc6 {[%clk 0:01:33.2]} 21... Ng4+ {[%clk 0:01:19.8]} 22. hxg4 {[%clk
0:01:31.2]} 22... Qh4+ {[%clk 0:01:16.9]} 23. Kg1 {[%clk 0:01:31.2]} 23... Bxg4
{[%clk 0:00:24.1]} 24. Ne5 {[%clk 0:01:19]} 24... Bh3 {[%clk 0:00:07.7]} 25.
Nxg6 {[%clk 0:01:13.4]} 25... hxg6 {[%clk 0:00:08.6]} 26. gxh3 {[%clk
0:00:25.4]} 26... Qxh3 {[%clk 0:00:09.5]} 27. f3 {[%clk 0:00:25.7]} 27... Nd2
{[%clk 0:00:06.9]} 28. Qa2 {[%clk 0:00:20.6]} 28... Nxf3+ {[%clk 0:00:03.5]} 29.
Rxf3 {[%clk 0:00:20.8]} 29... Qxf3 {[%clk 0:00:04.4]} 30. Qg2 {[%clk 0:00:20.4]}
30... Qh5 {[%clk 0:00:03.7]} 31. axb6 {[%clk 0:00:20.3]} 31... axb6 {[%clk
0:00:04.6]} 32. Ra8+ {[%clk 0:00:20.2]} 32... Kh7 {[%clk 0:00:04.7]} 33. Qh2
{[%clk 0:00:20.9]} 33... Qxh2+ {[%clk 0:00:04.9]} 34. Kxh2 {[%clk 0:00:21.1]}
34... cxd4 {[%clk 0:00:05.8]} 35. exd4 {[%clk 0:00:21.2]} 35... f6 {[%clk
0:00:06.3]} 36. Rd8 {[%clk 0:00:20.8]} 36... g5 {[%clk 0:00:06.7]} 37. Rxd5
{[%clk 0:00:21.7]} 37... gxf4 {[%clk 0:00:06.6]} 38. Rd6 {[%clk 0:00:22.3]}
38... Kg6 {[%clk 0:00:06.7]} 39. Rxb6 {[%clk 0:00:22.9]} 39... Kf5 {[%clk
0:00:07.5]} 40. c4 {[%clk 0:00:23.3]} 40... g5 {[%clk 0:00:08.1]} 41. c5 {[%clk
0:00:23.8]} 41... Ke4 {[%clk 0:00:07.8]} 42. c6 {[%clk 0:00:24.1]} 42... g4
{[%clk 0:00:07.9]} 43. c7 {[%clk 0:00:24.2]} 43... Kf3 {[%clk 0:00:08.8]} 44.
c8=Q {[%clk 0:00:23.8]} 44... Kf2 {[%clk 0:00:09.7]} 45. Rb2+ {[%clk 0:00:23.3]}
45... Kf3 {[%clk 0:00:08.9]} 46. Qc6+ {[%clk 0:00:23.3]} 46... Ke3 {[%clk
0:00:09.1]} 47. Qc3+ {[%clk 0:00:23.1]} 47... Ke4 {[%clk 0:00:10]} 48. Re2+
{[%clk 0:00:22.4]} 48... Kf5 {[%clk 0:00:09.7]} 49. Qd3+ {[%clk 0:00:22.1]}
49... Kg5 {[%clk 0:00:09.9]} 50. Re7 {[%clk 0:00:18.1]} 50... f3 {[%clk
0:00:08.7]} 51. Qe3+ {[%clk 0:00:16.8]} 51... Kg6 {[%clk 0:00:09.1]} 52. Qe4+
{[%clk 0:00:16.4]} 52... f5 {[%clk 0:00:09.6]} 53. Re6+ {[%clk 0:00:15.4]} 53...
Kg5 {[%clk 0:00:10.3]} 54. Qe3+ {[%clk 0:00:15.6]} 54... f4 {[%clk 0:00:08.1]}
55. Qe5+ {[%clk 0:00:15.7]} 55... Kh4 {[%clk 0:00:08.9]} 56. Rh6# {[%clk
0:00:15.9]} 1-0

[Event "Early-Titled-Tuesday-Blitz-October-17-2023"]
[Site "Chess.com"]
[Date "2023.10.17"]
[Round "6"]
[White "Iball95"]
[Black "wqws"]
[Result "1-0"]
[WhiteElo "2825"]
[BlackElo "2645"]
[TimeControl "180+1"]
[EndTime "9:11:39 PDT"]
[Termination "Iball95 won by resignation"]

1. e4 {[%clk 0:03:00]} 1... c5 {[%clk 0:02:59.4]} 2. Nf3 {[%clk 0:03:00.8]} 2...
d6 {[%clk 0:02:59.7]} 3. Nc3 {[%clk 0:03:01.6]} 3... Nf6 {[%clk 0:02:59.4]} 4.
d4 {[%clk 0:03:02.3]} 4... cxd4 {[%clk 0:02:58.7]} 5. Qxd4 {[%clk 0:03:03.2]}
5... Nc6 {[%clk 0:02:57.7]} 6. Bb5 {[%clk 0:03:04.1]} 6... Bd7 {[%clk 0:02:58]}
7. Bxc6 {[%clk 0:03:04.6]} 7... Bxc6 {[%clk 0:02:58.9]} 8. Bg5 {[%clk
0:03:05.1]} 8... e6 {[%clk 0:02:55.3]} 9. O-O-O {[%clk 0:03:05.4]} 9... Be7
{[%clk 0:02:55.2]} 10. Rhe1 {[%clk 0:03:06.3]} 10... O-O {[%clk 0:02:53.4]} 11.
e5 {[%clk 0:03:06.7]} 11... dxe5 {[%clk 0:02:53]} 12. Nxe5 {[%clk 0:03:07.6]}
12... Qxd4 {[%clk 0:02:52.4]} 13. Rxd4 {[%clk 0:03:08.5]} 13... Bc5 {[%clk
0:02:38.1]} 14. Nxc6 {[%clk 0:03:04.2]} 14... bxc6 {[%clk 0:02:35.9]} 15. Bxf6
{[%clk 0:03:04.2]} 15... gxf6 {[%clk 0:02:34.7]} 16. Rd2 {[%clk 0:03:04.2]}
16... Rfd8 {[%clk 0:02:33.4]} 17. Ree2 {[%clk 0:03:04.1]} 17... f5 {[%clk
0:02:32.9]} 18. a3 {[%clk 0:02:56.4]} 18... Be7 {[%clk 0:02:30.5]} 19. g3 {[%clk
0:02:52.5]} 19... Bg5 {[%clk 0:02:26.6]} 20. f4 {[%clk 0:02:52]} 20... Bf6
{[%clk 0:02:27]} 21. Na4 {[%clk 0:02:44.7]} 21... h5 {[%clk 0:02:08.4]} 22. Nc5
{[%clk 0:02:43.6]} 22... Kf8 {[%clk 0:02:06.3]} 23. c4 {[%clk 0:02:25.8]} 23...
Ke7 {[%clk 0:02:04.4]} 24. Kc2 {[%clk 0:02:26.4]} 24... h4 {[%clk 0:02:02.3]}
25. b4 {[%clk 0:02:25]} 25... Bd4 {[%clk 0:01:44.3]} 26. Nb3 {[%clk 0:02:21.8]}
26... Bf6 {[%clk 0:01:38.1]} 27. Na5 {[%clk 0:02:18.4]} 27... Rdc8 {[%clk
0:01:35.1]} 28. Kb3 {[%clk 0:02:15.5]} 28... Rc7 {[%clk 0:01:32.7]} 29. Rd3
{[%clk 0:02:08.9]} 29... Ke8 {[%clk 0:01:19.6]} 30. c5 {[%clk 0:01:56.4]} 30...
h3 {[%clk 0:01:03.1]} 31. Nc4 {[%clk 0:01:53.7]} 31... Rb8 {[%clk 0:01:01.9]}
32. Nd6+ {[%clk 0:01:51.9]} 32... Kf8 {[%clk 0:01:01.6]} 33. Kc4 {[%clk
0:01:52.1]} 33... a5 {[%clk 0:00:57.5]} 34. Rb3 {[%clk 0:01:29]} 34... axb4
{[%clk 0:00:48]} 35. axb4 {[%clk 0:01:29.9]} 35... Ra7 {[%clk 0:00:48]} 36. b5
{[%clk 0:01:26.5]} 36... Ra4+ {[%clk 0:00:44.2]} 37. Rb4 {[%clk 0:01:25.8]}
37... cxb5+ {[%clk 0:00:41.3]} 38. Nxb5 {[%clk 0:01:26.7]} 38... Ra1 {[%clk
0:00:40.4]} 39. Rc2 {[%clk 0:01:22.8]} 39... Be7 {[%clk 0:00:37.4]} 40. Nc3
{[%clk 0:00:59.7]} 40... Rc8 {[%clk 0:00:32.8]} 41. Rb5 {[%clk 0:00:59.4]} 41...
Ra7 {[%clk 0:00:17.2]} 42. Rd2 {[%clk 0:00:54.5]} 42... Rac7 {[%clk 0:00:16.8]}
43. Na4 {[%clk 0:00:55.4]} 43... Ra8 {[%clk 0:00:16.6]} 44. Kb3 {[%clk
0:00:54.3]} 44... Rca7 {[%clk 0:00:14.8]} 45. Rd4 {[%clk 0:00:52.4]} 45... Rc7
{[%clk 0:00:13.3]} 46. Rc4 {[%clk 0:00:52.1]} 46... Rd8 {[%clk 0:00:13.1]} 47.
c6 {[%clk 0:00:44.9]} 47... Rd2 {[%clk 0:00:12.8]} 48. Rb7 {[%clk 0:00:44.5]}
48... Rc8 {[%clk 0:00:11.5]} 49. Nb6 {[%clk 0:00:44.5]} 49... Re8 {[%clk
0:00:11]} 50. c7 {[%clk 0:00:42.6]} 50... Rxh2 {[%clk 0:00:10.4]} 51. Rb8 {[%clk
0:00:43.2]} 1-0

[Event "Early-Titled-Tuesday-Blitz-October-17-2023"]
[Site "Chess.com"]
[Date "2023.10.17"]
[Round "6"]
[White "karinachess1"]
[Black "GMSAGOR"]
[Result "1/2-1/2"]
[WhiteElo "2611"]
[BlackElo "2481"]
[TimeControl "180+1"]
[EndTime "9:11:39 PDT"]
[Termination "Game drawn by repetition"]

1. d4 {[%clk 0:03:00.9]} 1... Nf6 {[%clk 0:02:59.1]} 2. c4 {[%clk 0:03:00.5]}
2... e6 {[%clk 0:02:59.5]} 3. Nc3 {[%clk 0:02:57.9]} 3... Bb4 {[%clk 0:02:59.3]}
4. Qc2 {[%clk 0:02:54.6]} 4... O-O {[%clk 0:02:58.8]} 5. a3 {[%clk 0:02:53.8]}
5... Bxc3+ {[%clk 0:02:58.4]} 6. Qxc3 {[%clk 0:02:54.7]} 6... c5 {[%clk
0:02:29.9]} 7. dxc5 {[%clk 0:02:48.2]} 7... a5 {[%clk 0:02:26.6]} 8. Nf3 {[%clk
0:02:34.2]} 8... Na6 {[%clk 0:02:24.2]} 9. b4 {[%clk 0:02:14.8]} 9... b6 {[%clk
0:01:17.4]} 10. cxb6 {[%clk 0:01:52.3]} 10... axb4 {[%clk 0:01:05.2]} 11. axb4
{[%clk 0:01:50.2]} 11... Ne4 {[%clk 0:01:04.9]} 12. Qb2 {[%clk 0:01:29.7]} 12...
Qxb6 {[%clk 0:01:03.6]} 13. Be3 {[%clk 0:01:04.5]} 13... Nxb4 {[%clk 0:00:33.1]}
14. Bxb6 {[%clk 0:00:41.1]} 14... Rxa1+ {[%clk 0:00:31.8]} 15. Qxa1 {[%clk
0:00:41.7]} 15... Nc2+ {[%clk 0:00:32.5]} 16. Kd1 {[%clk 0:00:42.2]} 16... Nxa1
{[%clk 0:00:33.3]} 17. Nd2 {[%clk 0:00:21.5]} 17... Bb7 {[%clk 0:00:23.8]} 18.
Nxe4 {[%clk 0:00:20.4]} 18... Bxe4 {[%clk 0:00:24.7]} 19. f3 {[%clk 0:00:19]}
19... Bc6 {[%clk 0:00:20.1]} 20. e4 {[%clk 0:00:15.7]} 20... Rb8 {[%clk
0:00:18.4]} 21. c5 {[%clk 0:00:13.2]} 21... d6 {[%clk 0:00:18.8]} 22. Bc4 {[%clk
0:00:03]} 22... dxc5 {[%clk 0:00:16.2]} 23. Kd2 {[%clk 0:00:03.6]} 23... Rxb6
{[%clk 0:00:15.4]} 24. Rxa1 {[%clk 0:00:03.4]} 24... g6 {[%clk 0:00:13.3]} 25.
Kc3 {[%clk 0:00:03.7]} 25... Kg7 {[%clk 0:00:10.2]} 26. h4 {[%clk 0:00:04.2]}
26... Be8 {[%clk 0:00:09.4]} 27. Ra5 {[%clk 0:00:04.5]} 27... Rc6 {[%clk
0:00:09.3]} 28. Ra7 {[%clk 0:00:04.6]} 28... Rc8 {[%clk 0:00:09.3]} 29. Bxe6
{[%clk 0:00:02.9]} 29... Rd8 {[%clk 0:00:09.6]} 30. Bc4 {[%clk 0:00:03]} 30...
Rd1 {[%clk 0:00:09.1]} 31. Rc7 {[%clk 0:00:03.1]} 31... Rg1 {[%clk 0:00:08.9]}
32. g4 {[%clk 0:00:03.2]} 32... Rg3 {[%clk 0:00:08.8]} 33. Be2 {[%clk
0:00:02.9]} 33... h5 {[%clk 0:00:07.8]} 34. gxh5 {[%clk 0:00:02.7]} 34... gxh5
{[%clk 0:00:08.7]} 35. Rxc5 {[%clk 0:00:03.2]} 35... f6 {[%clk 0:00:08.2]} 36.
Rc7+ {[%clk 0:00:02.9]} 36... Kh6 {[%clk 0:00:07.6]} 37. Re7 {[%clk 0:00:03]}
37... Bg6 {[%clk 0:00:07.1]} 38. Re6 {[%clk 0:00:02.7]} 38... Kg7 {[%clk
0:00:06.8]} 39. Re7+ {[%clk 0:00:03.2]} 39... Kf8 {[%clk 0:00:06.4]} 40. Rc7
{[%clk 0:00:02.9]} 40... Rh3 {[%clk 0:00:06.4]} 41. Kd2 {[%clk 0:00:03]} 41...
Rxh4 {[%clk 0:00:06.2]} 42. Ke3 {[%clk 0:00:03.9]} 42... Rh2 {[%clk 0:00:06.1]}
43. Rc6 {[%clk 0:00:03.8]} 43... Kg7 {[%clk 0:00:06]} 44. Rc7+ {[%clk 0:00:04]}
44... Kf8 {[%clk 0:00:05.9]} 45. Rc6 {[%clk 0:00:04]} 45... Kg7 {[%clk
0:00:05.8]} 46. Rc7+ {[%clk 0:00:04.5]} 46... Kf8 {[%clk 0:00:04.7]} 1/2-1/2

[Event "Early-Titled-Tuesday-Blitz-October-17-2023"]
[Site "Chess.com"]
[Date "2023.10.17"]
[Round "6"]
[White "DreamsAreFake"]
[Black "wonderfultime"]
[Result "0-1"]
[WhiteElo "2744"]
[BlackElo "2979"]
[TimeControl "180+1"]
[EndTime "9:11:43 PDT"]
[Termination "wonderfultime won by resignation"]

1. Nf3 {[%clk 0:02:55.2]} 1... d5 {[%clk 0:02:59.9]} 2. g3 {[%clk 0:02:53.8]}
2... Nd7 {[%clk 0:02:59]} 3. d4 {[%clk 0:02:50.8]} 3... Nb6 {[%clk 0:02:59.1]}
4. Bg2 {[%clk 0:02:51.5]} 4... Bf5 {[%clk 0:02:58.2]} 5. b3 {[%clk 0:02:52.1]}
5... e6 {[%clk 0:02:58.5]} 6. O-O {[%clk 0:02:35.3]} 6... Be7 {[%clk 0:02:56.6]}
7. a4 {[%clk 0:02:31.7]} 7... a5 {[%clk 0:02:54.9]} 8. Ba3 {[%clk 0:02:32.1]}
8... Nf6 {[%clk 0:02:52.1]} 9. Bxe7 {[%clk 0:02:32]} 9... Qxe7 {[%clk
0:02:51.2]} 10. Na3 {[%clk 0:02:32.7]} 10... O-O {[%clk 0:02:51.1]} 11. Ne5
{[%clk 0:02:33]} 11... Rfd8 {[%clk 0:02:43.1]} 12. e3 {[%clk 0:02:31.8]} 12...
h6 {[%clk 0:02:38]} 13. Qe2 {[%clk 0:02:25.8]} 13... c6 {[%clk 0:02:35]} 14. c4
{[%clk 0:02:16.2]} 14... Nbd7 {[%clk 0:02:26.5]} 15. Nd3 {[%clk 0:02:06.7]}
15... Be4 {[%clk 0:01:45.4]} 16. Rfc1 {[%clk 0:01:54.1]} 16... Bxg2 {[%clk
0:01:40.1]} 17. Kxg2 {[%clk 0:01:55]} 17... e5 {[%clk 0:01:40.8]} 18. dxe5
{[%clk 0:01:41.6]} 18... Nxe5 {[%clk 0:01:41]} 19. Nf4 {[%clk 0:01:01.5]} 19...
g5 {[%clk 0:01:23.3]} 20. Nh5 {[%clk 0:00:40.9]} 20... Nxh5 {[%clk 0:01:15.4]}
21. Qxh5 {[%clk 0:00:41.8]} 21... Kg7 {[%clk 0:01:15.4]} 22. Qe2 {[%clk
0:00:29.9]} 22... Rd7 {[%clk 0:01:04.2]} 23. Rd1 {[%clk 0:00:27.6]} 23... Rad8
{[%clk 0:01:04.3]} 24. cxd5 {[%clk 0:00:26.4]} 24... Rxd5 {[%clk 0:01:05]} 25.
Rxd5 {[%clk 0:00:26.6]} 25... Rxd5 {[%clk 0:01:05.9]} 26. Nc4 {[%clk 0:00:27.2]}
26... Nd3 {[%clk 0:00:58.9]} 27. Rd1 {[%clk 0:00:23.8]} 27... Qd8 {[%clk
0:00:49.7]} 28. Rd2 {[%clk 0:00:23.8]} 28... b5 {[%clk 0:00:49]} 29. axb5 {[%clk
0:00:23.4]} 29... cxb5 {[%clk 0:00:49.9]} 30. e4 {[%clk 0:00:22.6]} 30... Rd4
{[%clk 0:00:42.4]} 31. Ne3 {[%clk 0:00:20.7]} 31... Ne1+ {[%clk 0:00:39.4]} 32.
Qxe1 {[%clk 0:00:21.1]} 32... Rxd2 {[%clk 0:00:40.1]} 33. Qa1+ {[%clk
0:00:21.4]} 33... f6 {[%clk 0:00:17.4]} 34. Qc3 {[%clk 0:00:15.3]} 34... Kg6
{[%clk 0:00:12]} 35. Qc5 {[%clk 0:00:13.9]} 35... Qd4 {[%clk 0:00:05.7]} 36.
Qf5+ {[%clk 0:00:14.1]} 36... Kf7 {[%clk 0:00:05.7]} 37. Qh7+ {[%clk 0:00:14.1]}
37... Ke8 {[%clk 0:00:06.4]} 38. Qg8+ {[%clk 0:00:12.6]} 38... Kd7 {[%clk
0:00:07.2]} 39. Qf7+ {[%clk 0:00:12]} 39... Kc6 {[%clk 0:00:06.7]} 40. Qe6+
{[%clk 0:00:12.1]} 40... Kc5 {[%clk 0:00:06.6]} 41. Qf5+ {[%clk 0:00:05]} 41...
Kb4 {[%clk 0:00:05.5]} 42. Qf3 {[%clk 0:00:05.5]} 42... Rd3 {[%clk 0:00:03.6]}
43. Qe2 {[%clk 0:00:04.3]} 43... Rxe3 {[%clk 0:00:02.9]} 44. fxe3 {[%clk
0:00:04.4]} 44... Qxe4+ {[%clk 0:00:03.6]} 45. Kh3 {[%clk 0:00:04.5]} 45... Qe6+
{[%clk 0:00:03.3]} 46. g4 {[%clk 0:00:04.7]} 46... Qxb3 {[%clk 0:00:03.7]} 47.
Qxb5+ {[%clk 0:00:04.8]} 47... Kxb5 {[%clk 0:00:03.9]} 0-1

[Event "Early-Titled-Tuesday-Blitz-October-17-2023"]
[Site "Chess.com"]
[Date "2023.10.17"]
[Round "6"]
[White "AnaKuchava"]
[Black "midedu"]
[Result "0-1"]
[WhiteElo "2250"]
[BlackElo "2011"]
[TimeControl "180+1"]
[EndTime "9:11:48 PDT"]
[Termination "midedu won on time"]

1. d4 {[%clk 0:03:00.9]} 1... Nf6 {[%clk 0:02:59.4]} 2. Nf3 {[%clk 0:02:59.2]}
2... g6 {[%clk 0:02:58.9]} 3. c4 {[%clk 0:02:56.6]} 3... Bg7 {[%clk 0:02:59]} 4.
Nc3 {[%clk 0:02:56.7]} 4... d6 {[%clk 0:02:59.5]} 5. e4 {[%clk 0:02:55.6]} 5...
O-O {[%clk 0:02:59.9]} 6. Be2 {[%clk 0:02:55.5]} 6... Nc6 {[%clk 0:02:59.6]} 7.
O-O {[%clk 0:02:55.4]} 7... e5 {[%clk 0:02:58.5]} 8. Be3 {[%clk 0:02:54.5]} 8...
exd4 {[%clk 0:02:47.1]} 9. Nxd4 {[%clk 0:02:52.8]} 9... Bd7 {[%clk 0:02:46.7]}
10. Qd2 {[%clk 0:02:48.5]} 10... Re8 {[%clk 0:02:45.5]} 11. f3 {[%clk
0:02:48.3]} 11... Qc8 {[%clk 0:02:44.8]} 12. Rad1 {[%clk 0:02:46]} 12... a6
{[%clk 0:02:42.1]} 13. Rfe1 {[%clk 0:02:45.5]} 13... Ne5 {[%clk 0:02:29]} 14.
Bf1 {[%clk 0:02:42.8]} 14... h5 {[%clk 0:02:17.1]} 15. Nd5 {[%clk 0:02:40.3]}
15... Nh7 {[%clk 0:02:09.4]} 16. b3 {[%clk 0:02:34.7]} 16... Rb8 {[%clk
0:01:51.5]} 17. Bh6 {[%clk 0:02:22.9]} 17... Bh8 {[%clk 0:01:50]} 18. Qf4 {[%clk
0:02:12.4]} 18... b5 {[%clk 0:01:35.9]} 19. cxb5 {[%clk 0:02:07.6]} 19... axb5
{[%clk 0:01:35.5]} 20. Qc1 {[%clk 0:01:59.1]} 20... c6 {[%clk 0:01:29.1]} 21.
Nc3 {[%clk 0:01:41.6]} 21... b4 {[%clk 0:01:26.9]} 22. Na4 {[%clk 0:01:29.5]}
22... c5 {[%clk 0:01:24.3]} 23. Nc2 {[%clk 0:01:23.5]} 23... Re6 {[%clk
0:01:13.7]} 24. Bf4 {[%clk 0:01:14.5]} 24... Qb7 {[%clk 0:00:52.8]} 25. Ne3
{[%clk 0:01:09.8]} 25... Nf6 {[%clk 0:00:47.3]} 26. Bc4 {[%clk 0:00:59.5]} 26...
Nxc4 {[%clk 0:00:46.5]} 27. Nxc4 {[%clk 0:01:00.4]} 27... Bxa4 {[%clk
0:00:44.2]} 28. bxa4 {[%clk 0:01:01.3]} 28... Ne8 {[%clk 0:00:37.3]} 29. Nxd6
{[%clk 0:00:53.9]} 29... Nxd6 {[%clk 0:00:33.8]} 30. Rxd6 {[%clk 0:00:53]} 30...
Rxd6 {[%clk 0:00:25.2]} 31. Bxd6 {[%clk 0:00:53.9]} 31... Rc8 {[%clk 0:00:25.2]}
32. e5 {[%clk 0:00:50.3]} 32... Qc6 {[%clk 0:00:21.9]} 33. Qc4 {[%clk 0:00:49]}
33... Qxa4 {[%clk 0:00:18.8]} 34. e6 {[%clk 0:00:43.1]} 34... Bd4+ {[%clk
0:00:17.2]} 35. Kh1 {[%clk 0:00:43.1]} 35... Qa7 {[%clk 0:00:15.2]} 36. e7
{[%clk 0:00:37.5]} 36... Re8 {[%clk 0:00:14.7]} 37. Qb5 {[%clk 0:00:37.8]} 37...
Qa8 {[%clk 0:00:11.9]} 38. Bxc5 {[%clk 0:00:36.4]} 38... Bxc5 {[%clk 0:00:10.6]}
39. Qxc5 {[%clk 0:00:37.3]} 39... Qxa2 {[%clk 0:00:10.6]} 40. Qc6 {[%clk
0:00:37.4]} 40... Rxe7 {[%clk 0:00:05.9]} 41. Rg1 {[%clk 0:00:22.9]} 41... Qe6
{[%clk 0:00:05.2]} 42. Qb5 {[%clk 0:00:17.8]} 42... Qd6 {[%clk 0:00:03.4]} 43.
h3 {[%clk 0:00:15.7]} 43... Re5 {[%clk 0:00:03.6]} 44. Qb7 {[%clk 0:00:14.7]}
44... Re3 {[%clk 0:00:02]} 45. Rb1 {[%clk 0:00:14]} 45... b3 {[%clk 0:00:02.1]}
46. Qc8+ {[%clk 0:00:12.6]} 46... Kg7 {[%clk 0:00:02.1]} 47. Qc4 {[%clk
0:00:11.3]} 47... Qd3 {[%clk 0:00:01.9]} 48. Qc1 {[%clk 0:00:07.3]} 48... Qc3
{[%clk 0:00:01.7]} 49. Qxc3+ {[%clk 0:00:06.4]} 49... Rxc3 {[%clk 0:00:01.6]}
50. Kh2 {[%clk 0:00:06.4]} 50... Kf6 {[%clk 0:00:02.3]} 51. Kg3 {[%clk
0:00:06.3]} 51... Ke5 {[%clk 0:00:02.9]} 0-1

[Event "Early-Titled-Tuesday-Blitz-October-17-2023"]
[Site "Chess.com"]
[Date "2023.10.17"]
[Round "6"]
[White "mfwagnerpeixoto"]
[Black "campochess"]
[Result "1-0"]
[WhiteElo "2323"]
[BlackElo "2147"]
[TimeControl "180+1"]
[EndTime "9:11:51 PDT"]
[Termination "mfwagnerpeixoto won on time"]

1. Nf3 {[%clk 0:03:00.6]} 1... Nf6 {[%clk 0:02:57.1]} 2. g3 {[%clk 0:03:00.2]}
2... b6 {[%clk 0:02:56.9]} 3. Bg2 {[%clk 0:02:59.9]} 3... Bb7 {[%clk 0:02:56.9]}
4. O-O {[%clk 0:03:00]} 4... e6 {[%clk 0:02:56.9]} 5. d3 {[%clk 0:03:00.2]} 5...
Be7 {[%clk 0:02:56.3]} 6. e3 {[%clk 0:03:00]} 6... c5 {[%clk 0:02:56.2]} 7. c4
{[%clk 0:03:00.3]} 7... O-O {[%clk 0:02:56]} 8. Nc3 {[%clk 0:03:00.7]} 8... d6
{[%clk 0:02:55.4]} 9. e4 {[%clk 0:02:59.1]} 9... e5 {[%clk 0:02:53.5]} 10. Nh4
{[%clk 0:02:58.4]} 10... g6 {[%clk 0:02:52.4]} 11. f4 {[%clk 0:02:58]} 11...
exf4 {[%clk 0:02:44.3]} 12. e5 {[%clk 0:02:37.2]} 12... Bxg2 {[%clk 0:02:39.4]}
13. exf6 {[%clk 0:02:36.9]} 13... Bxf1 {[%clk 0:02:33.2]} 14. fxe7 {[%clk
0:02:37]} 14... Qxe7 {[%clk 0:02:33.2]} 15. Qxf1 {[%clk 0:02:34.3]} 15... fxg3
{[%clk 0:02:29.5]} 16. hxg3 {[%clk 0:02:35.2]} 16... f5 {[%clk 0:02:17.4]} 17.
Nd5 {[%clk 0:02:33.2]} 17... Qg7 {[%clk 0:02:15.2]} 18. Bd2 {[%clk 0:02:16.4]}
18... Nc6 {[%clk 0:02:14.4]} 19. Bc3 {[%clk 0:02:16.5]} 19... Nd4 {[%clk
0:02:14.3]} 20. Qf2 {[%clk 0:02:05.8]} 20... Rae8 {[%clk 0:02:11.4]} 21. Rf1
{[%clk 0:01:36.4]} 21... Qe5 {[%clk 0:01:59.3]} 22. Re1 {[%clk 0:01:20.5]} 22...
Qg7 {[%clk 0:01:40.3]} 23. Bxd4 {[%clk 0:01:16]} 23... cxd4 {[%clk 0:01:39.1]}
24. Rxe8 {[%clk 0:01:13.1]} 24... Rxe8 {[%clk 0:01:37.9]} 25. Nf3 {[%clk
0:01:12.7]} 25... Qh6 {[%clk 0:01:09.8]} 26. Nf6+ {[%clk 0:01:07.7]} 26... Kf7
{[%clk 0:01:09.7]} 27. Nxe8 {[%clk 0:01:07.6]} 27... Kxe8 {[%clk 0:01:08.3]} 28.
Nxd4 {[%clk 0:01:03.8]} 28... Kd7 {[%clk 0:01:04.4]} 29. Nf3 {[%clk 0:00:57.3]}
29... Qc1+ {[%clk 0:01:02.1]} 30. Kg2 {[%clk 0:00:57.2]} 30... Qb1 {[%clk
0:01:00.8]} 31. a3 {[%clk 0:00:56.3]} 31... Qxd3 {[%clk 0:01:00.1]} 32. Qd2
{[%clk 0:00:49.6]} 32... Qe4 {[%clk 0:00:51.7]} 33. Kf2 {[%clk 0:00:43.9]} 33...
Kc7 {[%clk 0:00:43.5]} 34. b3 {[%clk 0:00:41.2]} 34... a5 {[%clk 0:00:36.2]} 35.
a4 {[%clk 0:00:39.7]} 35... Qb1 {[%clk 0:00:28.8]} 36. Nd4 {[%clk 0:00:33.3]}
36... Qh1 {[%clk 0:00:27.4]} 37. Nb5+ {[%clk 0:00:32.9]} 37... Kc8 {[%clk
0:00:19]} 38. Nxd6+ {[%clk 0:00:29.8]} 38... Kb8 {[%clk 0:00:18.1]} 39. Qd5
{[%clk 0:00:14]} 39... Qh2+ {[%clk 0:00:14.9]} 40. Kf3 {[%clk 0:00:13.4]} 40...
Qh5+ {[%clk 0:00:12.5]} 41. Kf4 {[%clk 0:00:11.3]} 41... Qh6+ {[%clk 0:00:10.4]}
42. Ke5 {[%clk 0:00:10.8]} 42... Qg7+ {[%clk 0:00:10.4]} 43. Ke6 {[%clk
0:00:10.9]} 43... Qg8+ {[%clk 0:00:08.1]} 44. Kd7 {[%clk 0:00:08.2]} 44... Qg7+
{[%clk 0:00:06.5]} 45. Qf7 {[%clk 0:00:06.6]} 45... Qxf7+ {[%clk 0:00:06.2]} 46.
Nxf7 {[%clk 0:00:07.5]} 46... Kb7 {[%clk 0:00:04.3]} 47. Ng5 {[%clk 0:00:06.5]}
47... h6 {[%clk 0:00:03.8]} 48. Nf3 {[%clk 0:00:06.7]} 48... g5 {[%clk
0:00:03.8]} 49. Ke6 {[%clk 0:00:06.8]} 49... f4 {[%clk 0:00:03.9]} 50. gxf4
{[%clk 0:00:06.6]} 50... g4 {[%clk 0:00:03.6]} 51. Nh4 {[%clk 0:00:06.1]} 51...
g3 {[%clk 0:00:01.9]} 52. Ng2 {[%clk 0:00:05.4]} 52... Kc6 {[%clk 0:00:01.3]}
53. f5 {[%clk 0:00:06]} 1-0